Cogmind - Beta 10.1 @@@ ROGUE MODE // 2020.10.03 @ 14:06:29 // Winter2019/RPGLIKE Player: Hermelin Result: Core destroyed Performance ------------- Evolutions (5) 2500 Regions Visited (24) 4800 Robots Destroyed (375) 1875 Value Destroyed (12229) 12229 Prototype IDs (84) 1680 Alien Tech Used (2) 400 Bonus (1532) 1532 TOTAL SCORE: 25016 Bonus ------- High Alert Combat Kills 550 Follower Combat Kills 273 Aligned with FarCom 300 Met Data Miner 300 Met Imprinter 300 Destroyed Z-Imprinter 1000 Exposed GOLEM Chamber 500 Met Zhirov 300 Friendly Fire -1991 Cogmind --------- Core Integrity 0/900 Matter 193/300 Energy 612/810 System Corruption 0% Temperature Cool (0) Movement Hovering (65) Location -5/Zhirov Parts ------- > --- POWER (3) -------- F-cell Engine Light Antimatter Reactor Heavy Antimatter Reactor > --- PROPULSION (3) --- Zionite Glidesys II Combat Antigrav System Combat Antigrav System > --- UTILITY (11) ----- Advanced Signal Interpreter Long-range Terrain Scanner Advanced Core Analyzer Improved Armor Integrity Analyzer Microactuators Advanced Reaction Control System Advanced Phase Shifter Improved Powered Armor Advanced Hacking Suite Advanced System Shield > --- WEAPON (3) ------- 8R-AWN's Boregun Force Lance Force Lance > --- INVENTORY (7) ---- Protomatter-63 Zionite Biocell (1000) System Restoration Module GOLEM Unit Transdimensional Reconstructor 8R-AWN's Boregun Peak State ------------ > --- POWER ------------ Enhanced Nuclear Core F-cell Engine Light Antimatter Reactor > --- PROPULSION ------- Zionite Glidesys II Combat Antigrav System Combat Antigrav System > --- UTILITY ---------- Advanced Power Amplifier Zionite Biocell Advanced Signal Interpreter Advanced Core Analyzer Improved Armor Integrity Analyzer Makeshift Transmission Jammer Advanced Reaction Control System Advanced Phase Shifter Improved Powered Armor Advanced Hacking Suite Advanced System Shield > --- WEAPON ----------- 8R-AWN's Boregun Force Lance Force Lance > --- INVENTORY -------- Makeshift Hacking Suite System Backup Module GOLEM Unit 8R-AWN's Boregun Improved Plasma Cutter [Rating: 139] Favorites ----------- Power Reinforced Fission Core Engine Makeshift Power Source Power Core Reinforced Fission Core Reactor Light Antimatter Reactor Propulsion Combat Antigrav System Treads Light Treads Leg Zionite Composite Leg I Hover Unit Combat Antigrav System Utility Advanced Core Analyzer Device Makeshift Transmission Jammer Storage Zionite Biocell Processor Advanced Core Analyzer Hackware Hacking Suite Protection Improved Light Armor Plating Weapon Force Lance Energy Gun EM Pulse Gun Ballistic Gun 8R-AWN's Boregun Launcher Rocket Launcher Slashing Weapon Chainsword Piercing Weapon Force Lance Build | -11 -10 -10 -9 -9 -9 -8 -8 -7 -7 -7 -7 -6 -6 -6 -6 -6 -6 -5 -5 -5 -5 -5 -5 -5 ------- Run | Scr Mat Min Mat Min Exi Min Mat Fac Low Low Dat Pro Fac Low Low Zio Dee Pro Fac Was Fac Upp Upp Zhi Slots Evolved 15 | 3 2 2 2 1 . . 2 . . . . . 1 . . . . . 1 1 . . . . Power 1 | . . . 1 . . . . . . . . . . . . . . . . . . . . . Propulsion 2 | 1 . . 1 . . . . . . . . . . . . . . . . . . . . . Utility 10 | 1 1 2 . 1 . . 2 . . . . . 1 . . . . . 1 1 . . . . Weapon 2 | 1 1 . . . . . . . . . . . . . . . . . . . . . . . Parts Attached 183 | 9 10 3 18 8 19 1 7 14 1 . . . 9 4 1 4 30 . 18 4 8 . 9 6 Power 17 | 1 . . 1 . 2 . . 1 . . . . 2 1 . 1 2 . 3 . 1 . . 2 Engine 8 | 1 . . 1 . 1 . . . . . . . 1 1 . 1 1 . 1 . . . . . Core 5 | . . . . . 1 . . 1 . . . . 1 . . . . . 2 . . . . . Reactor 4 | . . . . . . . . . . . . . . . . . 1 . . . 1 . . 2 Propulsion 24 | 3 . . 3 1 4 . 1 4 . . . . 2 . . . 6 . . . . . . . Treads 4 | 2 . . 1 . 1 . . . . . . . . . . . . . . . . . . . Leg 4 | . . . . . 2 . . . . . . . . . . . 2 . . . . . . . Wheel . | . . . . . . . . . . . . . . . . . . . . . . . . . Hover 16 | 1 . . 2 1 1 . 1 4 . . . . 2 . . . 4 . . . . . . . Flight . | . . . . . . . . . . . . . . . . . . . . . . . . . Utility 90 | 3 1 2 6 6 8 1 5 5 . . . . 4 3 1 . 12 . 12 2 6 . 9 4 Device 41 | 1 . 1 . 1 4 . . 2 . . . . 3 2 . . 6 . 7 1 3 . 8 2 Storage 4 | . . . . . . . . . . . . . . . . . 1 . . . 1 . . 2 Processor 10 | 1 . 1 . 1 1 1 . 2 . . . . . . 1 . . . 1 . . . 1 . Hackware 6 | . . . . . . . 3 . . . . . . . . . 1 . 1 . 1 . . . Protection 29 | 1 1 . 6 4 3 . 2 1 . . . . 1 1 . . 4 . 3 1 1 . . . Artifact . | . . . . . . . . . . . . . . . . . . . . . . . . . Weapon 52 | 2 9 1 8 1 5 . 1 4 1 . . . 1 . . 3 10 . 3 2 1 . . . Energy Gun 9 | 1 . . 4 . 1 . . . . . . . . . . . 3 . . . . . . . Energy Cannon . | . . . . . . . . . . . . . . . . . . . . . . . . . Ballistic Gun 14 | 1 4 . 3 . 3 . . . . . . . . . . . 1 . . 2 . . . . Ballistic Cannon . | . . . . . . . . . . . . . . . . . . . . . . . . . Launcher 11 | . 5 1 1 1 1 . . . . . . . . . . 1 1 . . . . . . . Special Weapon . | . . . . . . . . . . . . . . . . . . . . . . . . . Impact Weapon . | . . . . . . . . . . . . . . . . . . . . . . . . . Slashing Weapon 14 | . . . . . . . 1 4 1 . . . . . . 1 5 . 2 . . . . . Piercing Weapon 4 | . . . . . . . . . . . . . 1 . . 1 . . 1 . 1 . . . Special Melee Weapon . | . . . . . . . . . . . . . . . . . . . . . . . . . Unidentified Prototypes 29 | . . . 1 . 7 . . . . . . . 1 . . 1 11 . 3 . . . 1 4 Parts Lost 2 | . . . . . . . . . . . . . . . . . . . 1 . . . . 1 Power . | . . . . . . . . . . . . . . . . . . . . . . . . . Propulsion . | . . . . . . . . . . . . . . . . . . . . . . . . . Utility 2 | . . . . . . . . . . . . . . . . . . . 1 . . . . 1 Weapon . | . . . . . . . . . . . . . . . . . . . . . . . . . Highest Loss Streak 1 | . . . . . . . . . . . . . . . . . . . 1 . . . . 1 Average Slot Usage (%) 98 | . 99 99 98 100 99 100 99 100 100 100 100 100 99 100 100 100 99 100 99 91 89 100 100 98 Engine 6 | . 13 9 10 14 11 7 6 2 . . . . 2 2 5 10 10 11 6 5 5 5 5 5 Core 6 | . . . . . 2 7 6 9 12 12 12 12 13 13 11 5 5 5 8 10 5 5 5 3 Treads 2 | . 13 9 8 7 5 . . . . . . . . . . . . . . . . . . . Hover 15 | . 13 9 11 14 15 21 19 18 18 18 18 18 16 16 16 16 15 16 15 15 15 15 15 15 Device 14 | . 13 12 11 6 9 14 12 9 6 6 6 6 10 13 22 22 16 22 21 16 16 20 21 23 Processor 14 | . . 9 8 12 14 14 12 14 18 18 18 18 16 16 18 22 21 16 17 15 15 15 15 15 Hackware 7 | . . . . . . . 11 18 18 18 18 18 16 14 3 . . 5 8 10 10 10 10 10 Protection 9 | . 16 19 21 21 17 14 7 6 6 6 6 6 . 4 5 5 9 5 4 5 5 5 5 5 Energy Gun 2 | . 13 9 7 7 6 7 1 . . . . . . . . . . . . . . . . . Ballistic Gun 5 | . 12 9 13 8 10 14 12 6 . . . . . . . . . . . 10 5 5 5 5 Launcher 1 | . 4 9 3 5 3 . . . . . . . . . . . . . . . . . . . Slashing Weapon 6 | . . . . . . . 4 11 18 18 18 18 15 11 11 11 10 11 8 . . . . . Piercing Weapon 2 | . . . . . . . . . . . . . 1 5 5 4 5 5 6 5 9 10 10 10 Naked Turns . | . . . . . . . . . . . . . . . . . . . . . . . . . Heaviest Build 105 | 13 19 21 28 30 64 46 50 52 47 47 47 47 54 63 63 63 79 63 74 105 91 76 77 86 Greatest Support 95 | 45 27 27 35 49 79 79 79 95 95 95 95 95 95 95 95 95 95 93 93 93 93 93 93 93 Greatest Overweight (x) 5 | . . . . . 5 . . . . . . . . . . . 1 . . 1 . . . . Average Overweight (x) . | . . . . . . . . . . . . . . . . . . . . . . . . . Largest Inventory Capacity 7 | 2 2 2 4 4 4 5 5 5 6 6 6 6 6 6 6 6 7 7 7 7 7 7 7 7 Average Capacity 4 | 1 2 2 3 4 4 4 5 5 5 6 6 6 6 6 6 6 6 7 7 7 7 7 7 7 Most Carried 7 | 1 2 2 4 4 4 5 5 5 6 6 6 6 6 6 6 6 7 7 7 7 7 6 7 7 Average Carried 4 | . 1 1 3 3 2 4 4 4 5 5 6 6 5 5 5 5 6 7 6 6 6 5 6 7 Final Capacity 7 | 2 2 2 4 4 4 5 5 5 6 6 6 6 6 6 6 6 7 7 7 7 7 7 7 7 Final Carried 7 | 1 2 2 4 4 4 5 5 5 6 6 6 6 6 6 5 6 7 7 7 7 5 6 7 7 Class Distribution -------------------- 24% | Hacker-Mutant 19% | Mutant 17% | Wizard-Scout 17% | Hacker-Ninja 10% | Scavenger-Mutant 3% | Hacker-Tank Dominant Class ---------------- Mutant | -10/Materials Mutant | -10/Mines Hacker-Tank | -9/Materials Hacker-Mutant | -9/Mines Hacker-Mutant | -9/Exiles Scavenger-Gunner | -8/Mines Hacker-Mutant | -8/Materials Wizard-Scout | -7/Factory Wizard-Scout | -7/Lower Caves Wizard-Scout | -7/Lower Caves Wizard-Scout | -7/Data Miner Wizard-Scout | -6/Proximity Caves Wizard-Scout | -6/Factory Wizard-Ninja | -6/Lower Caves Hacker-Ninja | -6/Lower Caves Hacker-Ninja | -6/Zion Scavenger-Mutant | -6/Deep Caves Hacker-Ninja | -5/Proximity Caves Hacker-Ninja | -5/Factory Hacker-Mutant | -5/Waste Hacker-Mutant | -5/Factory Hacker-Mutant | -5/Upper Caves Hacker-Mutant | -5/Upper Caves Hacker-Ninja | -5/Zhirov Resources | -11 -10 -10 -9 -9 -9 -8 -8 -7 -7 -7 -7 -6 -6 -6 -6 -6 -6 -5 -5 -5 -5 -5 -5 -5 ----------- Run | Scr Mat Min Mat Min Exi Min Mat Fac Low Low Dat Pro Fac Low Low Zio Dee Pro Fac Was Fac Upp Upp Zhi Matter Collected 4865 | 302 290 169 489 188 760 202 862 296 10 . . . 40 100 . 30 426 . 175 238 178 20 90 . Remotely . | . . . . . . . . . . . . . . . . . . . . . . . . . Salvage Created 16247 | 106 658 302 1256 164 608 511 1525 766 716 . . 417 337 173 181 . 956 267 2902 2122 1060 177 1043 . Parts 1005 | 5 43 25 100 12 84 27 144 54 36 . . 28 34 7 14 . 68 12 149 39 67 10 47 . Haulers Intercepted 16 | . 2 . 5 . . . 3 . . . . . 1 . . . . . 3 . 1 . 1 . Recyclers Shooed 2 | . . . 1 . . . . . . . . . . . . . . . 1 . . . . . Parts Field Recycled . | . . . . . . . . . . . . . . . . . . . . . . . . . Retrieved Matter . | . . . . . . . . . . . . . . . . . . . . . . . . . Parts Self-Destructed 151 | . . . . . . . . . 27 . . 34 . 7 14 . . 12 . . . 10 47 . Prevented 2 | . . . . . . . . . . 1 . . . . . . . 1 . . . . . . Kills | -11 -10 -10 -9 -9 -9 -8 -8 -7 -7 -7 -7 -6 -6 -6 -6 -6 -6 -5 -5 -5 -5 -5 -5 -5 ------- Run | Scr Mat Min Mat Min Exi Min Mat Fac Low Low Dat Pro Fac Low Low Zio Dee Pro Fac Was Fac Upp Upp Zhi Combat Hostiles Destroyed 289 | 1 17 15 21 14 3 8 43 13 14 . . 11 9 3 6 . 19 5 44 6 16 4 17 . Melee 149 | . . . . . . . 2 6 14 . . 11 9 3 6 . 13 5 44 . 15 4 17 . Guns 111 | 1 10 6 21 9 1 8 41 7 . . . . . . . . . . . 6 1 . . . AOE 29 | . 7 9 . 5 2 . . . . . . . . . . . 6 . . . . . . . Classes Destroyed 23 | 3 7 . 1 1 2 1 1 1 1 . . . . . . . 2 . 2 1 . . . . Worker 16 | . 3 . 1 . . . 4 1 . . . . . . . . . . 6 . 1 . . . Builder 4 | . 1 1 . . . . 1 . . . . . . . . . . . . . 1 . . . Tunneler 2 | 1 . . . . . 1 . . . . . . . . . . . . . . . . . . Hauler 16 | . 2 . 5 . . . 3 . . . . . 1 . . . . . 3 . 1 . 1 . Recycler 3 | 1 . . . . . . . . . . . . . . . . . . 2 . . . . . Operator 5 | . 2 . 1 . . . 2 . . . . . . . . . . . . . . . . . Turret 1 | . . . . . 1 . . . . . . . . . . . . . . . . . . . Watcher 21 | . 3 . 5 . . . 3 3 . . . . 2 . . . . . 5 . . . . . Swarmer 63 | . 6 9 9 . . 2 16 1 1 . . 5 3 3 . . . . 8 . . . . . Grunt 117 | . 11 6 4 4 . 5 14 6 3 . . 4 2 . 5 . . 4 21 . 8 4 16 . Brawler 3 | . . . . . . . 1 . . . . . . . 1 . . 1 . . . . . . Duelist 2 | . . . . 1 . . . . 1 . . . . . . . . . . . . . . . Protector 1 | . . . . . . . . . . . . . . . . . . . 1 . . . . . Sentry 36 | . . . 8 . . . 10 4 1 . . 1 2 . . . . . 4 . 6 . . . Hunter 12 | . . . . . . 1 2 1 1 . . . . . . . . . 4 . 2 . 1 . Programmer 9 | . . . . . . . . 1 . . . 1 2 . . . . . 5 . . . . . Behemoth 1 | . . . . . . . . . . . . . . . . . . . 1 . . . . . Compactor 6 | . . . . . . . . . . . . . . . . . . . . 6 . . . . Zionite 4 | . . . . . 4 . . . . . . . . . . . . . . . . . . . Z-Technician 5 | . . . . . . . . . . . . . . . . . 5 . . . . . . . Z-Light 11 | . . . . . . . . . . . . . . . . . 11 . . . . . . . Assembled 23 | 1 . . . 9 7 . . . . . . . . . . . 6 . . . . . . . Golem 1 | . . . . . . . . . . . . . . . . . 1 . . . . . . . Thug 4 | . . . . . . . . . 4 . . . . . . . . . . . . . . . Savage 2 | . . . . . . . . . 2 . . . . . . . . . . . . . . . Mutant 1 | . . . . . . . . . 1 . . . . . . . . . . . . . . . Best Kill Streak 13 | 2 5 3 5 4 4 3 13 4 3 . . 4 4 3 3 . 6 3 5 4 3 2 5 . Combat Bots Only 10 | 1 3 3 5 4 2 3 10 4 3 . . 4 4 3 3 . 6 3 4 4 3 2 5 . Max Kills in Single Turn 5 | 1 2 2 1 2 5 2 4 2 1 . . 1 1 1 1 . 2 1 1 1 1 1 1 . Gunslinging 1 | . . . . . . 1 1 . . . . . . . . . . . . . . . . . Exploded 2 | . 2 2 . 2 2 . . . . . . . . . . . 2 . . . . . . . Melee 1 | . . . . . . . 1 1 1 . . 1 1 1 1 . 1 1 1 . 1 1 1 . Uniques/NPCs Destroyed 5 | . . . . . 4 . . . . . . . . . . . 1 . . . . . . . EX-HEX (-9/Exiles) 8R-AWN (-9/Exiles) EX-DEC (-9/Exiles) EX-BIN (-9/Exiles) Z-Imprinter (-6/Deep Caves) Combat | -11 -10 -10 -9 -9 -9 -8 -8 -7 -7 -7 -7 -6 -6 -6 -6 -6 -6 -5 -5 -5 -5 -5 -5 -5 -------- Run | Scr Mat Min Mat Min Exi Min Mat Fac Low Low Dat Pro Fac Low Low Zio Dee Pro Fac Was Fac Upp Upp Zhi Damage Taken 15106 | . 427 490 821 319 788 216 611 683 1035 . . 1005 610 173 135 . 1441 169 3048 . 1070 207 415 1443 Core 9598 | . 288 332 515 181 533 151 421 464 675 . . 587 492 116 75 . 775 119 2032 . 528 131 278 905 Absorbed by Shields 781 | . . . . 62 299 82 243 95 . . . . . . . . . . . . . . . . Redirected to Core 8169 | . 214 265 436 167 485 116 337 372 562 . . 495 389 70 75 . 676 81 1720 . 528 131 244 806 Core Remaining (%) 79 | 100 . 83 . . . 13 99 . . . . 83 . . . . . 100 . . . . . . Volleys Fired 411 | 4 47 30 66 25 85 16 88 13 . . . . . . . . 6 . . 17 7 . . 7 Largest 3 | 2 2 2 3 3 3 3 3 2 . . . . . . . . 1 . . 2 2 . . 1 Hottest 105 | 60 60 60 91 91 96 105 105 60 . . . . . . . . 45 . . 60 60 . . 30 Shots Fired 790 | 8 87 53 154 44 142 48 169 26 . . . . . . . . 6 . . 33 13 . . 7 Gun 755 | 8 80 46 154 41 129 48 169 26 . . . . . . . . 1 . . 33 13 . . 7 Cannon . | . . . . . . . . . . . . . . . . . . . . . . . . . Launcher 35 | . 7 7 . 3 13 . . . . . . . . . . . 5 . . . . . . . Special . | . . . . . . . . . . . . . . . . . . . . . . . . . Kinetic 541 | 4 40 23 103 25 102 32 132 26 . . . . . . . . 1 . . 33 13 . . 7 Thermal . | . . . . . . . . . . . . . . . . . . . . . . . . . Explosive 35 | . 7 7 . 3 13 . . . . . . . . . . . 5 . . . . . . . Electromagnetic 214 | 4 40 23 51 16 27 16 37 . . . . . . . . . . . . . . . . . Robot Hit Streak 25 | 2 9 11 18 18 25 7 14 10 . . . . . . . . 4 . . 7 2 . . 6 Robot Miss Streak 11 | 2 3 4 4 2 4 2 11 4 . . . . . . . . 3 . . 3 4 . . 2 Penetration Max 2 | . . . . . 2 1 2 2 . . . . . . . . . . . 1 . . . . Secondary Targets 12 | . . 1 3 2 1 3 2 . . . . . . . . . . . . . . . . . Max Gunslinging Chain 1 | . . 1 1 1 1 1 1 . . . . . . . . . . . . . . . . . Shots Hit Robots 1045 | 3 47 35 103 36 109 34 140 39 50 . . 32 35 7 14 . 61 12 165 17 49 14 37 6 Core Hits 634 | 3 37 25 49 29 55 24 85 24 26 . . 20 15 7 10 . 45 9 97 13 30 6 25 . Critical Hits 130 | . . . 1 . 10 5 51 11 1 . . 1 . . . . 3 1 13 12 10 4 5 2 Critical Kills 60 | . . . . . 1 2 22 6 1 . . . . . . . 1 . 9 6 6 2 4 . Critical Parts Destroyed 54 | . . . . . 5 3 25 5 . . . 1 . . . . 2 1 2 2 3 2 1 2 Melee Attacks 684 | . . . . . . . 28 37 75 2 . 36 60 12 18 . 71 21 201 . 64 16 43 . Impact . | . . . . . . . . . . . . . . . . . . . . . . . . . Slashing 356 | . . . . . . . 28 37 75 2 . 36 56 4 6 . 39 8 65 . . . . . Piercing 328 | . . . . . . . . . . . . . 4 8 12 . 32 13 136 . 64 16 43 . Sneak Attacks 40 | . . . . . . . 4 . . . . . 1 . 2 . 6 . 23 . 3 . 1 . Combat Hostiles 5 | . . . . . . . . . . . . . . . . . . . 5 . . . . . Follow-up Attacks 111 | . . . . . . . . 3 15 . . 9 9 1 5 . 19 4 34 . 6 1 5 . Damage Inflicted 37392 | 38 1625 1112 1649 845 2551 557 3551 1468 1880 . . 1218 1466 649 713 . 3545 494 8905 477 2330 562 1650 107 Guns 9247 | 38 700 454 1453 471 1796 557 2551 533 . . . . . . . . 16 . . 477 94 . . 107 Cannons . | . . . . . . . . . . . . . . . . . . . . . . . . . Explosions 3288 | . 925 658 196 374 755 . 87 . . . . . . . . . 293 . . . . . . . Melee 24857 | . . . . . . . 913 935 1880 . . 1218 1466 649 713 . 3236 494 8905 . 2236 562 1650 . Ramming . | . . . . . . . . . . . . . . . . . . . . . . . . . Kinetic 6452 | . 237 177 890 219 1488 307 1907 533 . . . . . . . . 16 . . 477 94 . . 107 Thermal 886 | . 523 31 135 110 . . 87 . . . . . . . . . . . . . . . . . Explosive 2402 | . 402 627 61 264 755 . . . . . . . . . . . 293 . . . . . . . Electromagnetic 2795 | 38 463 277 563 252 308 250 644 . . . . . . . . . . . . . . . . . Impact . | . . . . . . . . . . . . . . . . . . . . . . . . . Slashing 10195 | . . . . . . . 913 935 1880 . . 1218 1466 29 164 . 1313 155 2122 . . . . . Piercing 14662 | . . . . . . . . . . . . . . 620 549 . 1923 339 6783 . 2236 562 1650 . Highest Corruption 8 | . 1 1 . . . . . . . . . 1 1 . . . . . 2 8 5 . 2 . Average Corruption 2 | . 1 1 . . . . . . . . . 1 1 . . . . . 1 5 3 . 1 . Corruption Purged 15 | . . . . . . . . . . . . . 2 . . . . . 2 4 5 . 2 . Effects 39 | . 1 3 . . . . . . . . . . . . . . . . 3 13 19 . . . Message Errors 14 | . 1 1 . . . . . . . . . . . . . . . . 1 5 6 . . . Matter Fused 6 | . . . . . . . . . . . . . . . . . . . . 2 4 . . . Heat Flow Errors 3 | . . . . . . . . . . . . . . . . . . . 1 . 2 . . . Energy Discharges 3 | . . 1 . . . . . . . . . . . . . . . . . . 2 . . . Data Loss (minor) 4 | . . . . . . . . . . . . . . . . . . . . 2 2 . . . Targeting Errors 8 | . . 1 . . . . . . . . . . . . . . . . 1 3 3 . . . Weapon Failures 1 | . . . . . . . . . . . . . . . . . . . . 1 . . . . Overload Shots . | . . . . . . . . . . . . . . . . . . . . . . . . . Overflow Damage 1895 | . 243 15 . 38 5 . 136 42 112 . . 58 65 11 18 . 498 . 451 . 184 . 19 . Projectiles . | . . . . . . . . . . . . . . . . . . . . . . . . . Explosions 302 | . 243 15 . 38 5 . . . . . . . . . . . 1 . . . . . . . Melee 1593 | . . . . . . . 136 42 112 . . 58 65 11 18 . 497 . 451 . 184 . 19 . Knockbacks . | . . . . . . . . . . . . . . . . . . . . . . . . . Impact . | . . . . . . . . . . . . . . . . . . . . . . . . . Kinetic . | . . . . . . . . . . . . . . . . . . . . . . . . . Secondary . | . . . . . . . . . . . . . . . . . . . . . . . . . Self-Inflicted Damage 401 | . 53 52 94 112 . . 28 . . . . . . . . . 62 . . . . . . . Shots 15 | . 2 3 3 3 . . 1 . . . . . . . . . 3 . . . . . . . Rammed . | . . . . . . . . . . . . . . . . . . . . . . . . . Targets Rammed . | . . . . . . . . . . . . . . . . . . . . . . . . . Kicked . | . . . . . . . . . . . . . . . . . . . . . . . . . Crushed . | . . . . . . . . . . . . . . . . . . . . . . . . . Highest Temperature 316 | . 90 219 200 64 264 280 222 36 2 . . 11 7 . 14 . 89 6 277 78 316 . 1 . Average Temperature 62 | . 27 103 64 20 75 103 48 15 1 . . 4 7 . 6 . 27 5 133 35 145 . 1 . Received Heat Transfer 3165 | . 141 195 174 36 . 60 156 192 204 . . 273 87 . 54 . 405 81 588 . 297 93 129 . Effects 9 | . . . . . . 3 4 . . . . . . . . . . . 1 . 1 . . . Energy Bleed 3 | . . . . . . . 1 . . . . . . . . . . . 1 . 1 . . . Interference 6 | . . . . . . 3 3 . . . . . . . . . . . . . . . . . Siege Activations . | . . . . . . . . . . . . . . . . . . . . . . . . . Robots Corrupted 1 | . 1 . . . . . . . . . . . . . . . . . . . . . . . Combat Hostiles . | . . . . . . . . . . . . . . . . . . . . . . . . . Parts Fried 10 | . 3 2 . 1 . . 4 . . . . . . . . . . . . . . . . . Impact Corruptions . | . . . . . . . . . . . . . . . . . . . . . . . . . Robots Melted . | . . . . . . . . . . . . . . . . . . . . . . . . . Combat Hostiles . | . . . . . . . . . . . . . . . . . . . . . . . . . Parts Melted 4 | . . 1 2 . . . 1 . . . . . . . . . . . . . . . . . Heat Transferred 700 | . 350 50 150 100 . . 50 . . . . . . . . . . . . . . . . . Parts Sabotaged . | . . . . . . . . . . . . . . . . . . . . . . . . . Parts Stolen . | . . . . . . . . . . . . . . . . . . . . . . . . . Parts Stripped . | . . . . . . . . . . . . . . . . . . . . . . . . . Power Chain Reactions 9 | . 2 1 4 1 . . 1 . . . . . . . . . . . . . . . . . Missiles Intercepted . | . . . . . . . . . . . . . . . . . . . . . . . . . Alert | -11 -10 -10 -9 -9 -9 -8 -8 -7 -7 -7 -7 -6 -6 -6 -6 -6 -6 -5 -5 -5 -5 -5 -5 -5 ------- Run | Scr Mat Min Mat Min Exi Min Mat Fac Low Low Dat Pro Fac Low Low Zio Dee Pro Fac Was Fac Upp Upp Zhi Peak Influence 820 | 10 391 377 406 211 . 235 477 307 . . . . 402 . . . . . 820 287 649 . . . Initial 287 | . . 152 135 106 . . 13 145 . . . . 104 . . . . . . 287 60 . . . Average 177 | 1 187 273 197 83 . 121 272 158 . . . . 156 . . . . . 366 239 253 . . . Maximum Alert Level 3 | . 1 1 2 1 . 1 2 1 . . . . 2 . . . . . 3 1 2 . . . Low Security (%) 61 | 100 55 14 40 98 . 91 33 60 . . . . 79 . . . . . 38 23 45 . . . Level 1 29 | . 44 85 55 1 . 8 50 39 . . . . 20 . . . . . 15 76 37 . . . Level 2 6 | . . . 3 . . . 16 . . . . . . . . . . . 27 . 17 . . . Level 3 2 | . . . . . . . . . . . . . . . . . . . 18 . . . . . Level 4 . | . . . . . . . . . . . . . . . . . . . . . . . . . Level 5 . | . . . . . . . . . . . . . . . . . . . . . . . . . High Security . | . . . . . . . . . . . . . . . . . . . . . . . . . Max Security . | . . . . . . . . . . . . . . . . . . . . . . . . . Squads Dispatched 28 | . 4 . 1 1 . . 4 3 . . . . 6 . . . . . 6 . 3 . . . Investigation 13 | . 4 . 1 1 . . 1 1 . . . . 4 . . . . . . . 1 . . . Extermination 6 | . . . . . . . . 2 . . . . 2 . . . . . 2 . . . . . Reinforcement 6 | . . . . . . . 2 . . . . . . . . . . . 2 . 2 . . . Assault 2 | . . . . . . . . . . . . . . . . . . . 2 . . . . . Garrison 1 | . . . . . . . 1 . . . . . . . . . . . . . . . . . Intercept . | . . . . . . . . . . . . . . . . . . . . . . . . . Construction Impeded 1 | . . . . . . . 1 . . . . . . . . . . . . . . . . . Haulers Reinforced 1 | . . . . . . . . . . . . . . . . . . . 1 . . . . . Stealth | -11 -10 -10 -9 -9 -9 -8 -8 -7 -7 -7 -7 -6 -6 -6 -6 -6 -6 -5 -5 -5 -5 -5 -5 -5 --------- Run | Scr Mat Min Mat Min Exi Min Mat Fac Low Low Dat Pro Fac Low Low Zio Dee Pro Fac Was Fac Upp Upp Zhi Distress Signals 11 | . 1 . 2 . . . 5 . . . . . 1 . . . . . 2 . . . . . Communications Jammed 30 | . . . . . . . . . . . . . . . . . . . 24 . 6 . . . Distress Signals 30 | . . . . . . . . . . . . . . . . . . . 24 . 6 . . . Times Spotted 441 | 1 27 16 31 15 36 10 60 26 19 5 . 17 19 3 6 . 17 5 83 3 21 4 17 . Peak Tracking Total 10 | . 4 3 5 4 5 3 8 4 4 5 . 4 7 3 3 . 3 3 10 2 7 1 5 . Tactical Retreats 42 | . . 2 1 1 8 1 4 . 1 3 . 1 3 . 1 . . . 14 . 2 . . . Traps | -11 -10 -10 -9 -9 -9 -8 -8 -7 -7 -7 -7 -6 -6 -6 -6 -6 -6 -5 -5 -5 -5 -5 -5 -5 ------- Run | Scr Mat Min Mat Min Exi Min Mat Fac Low Low Dat Pro Fac Low Low Zio Dee Pro Fac Was Fac Upp Upp Zhi Traps Triggered 7 | . 2 . 2 . . . . . . . . . . . . . . . 1 . 2 . . . Indirectly . | . . . . . . . . . . . . . . . . . . . . . . . . . Trap Hack Attempts . | . . . . . . . . . . . . . . . . . . . . . . . . . Triggered . | . . . . . . . . . . . . . . . . . . . . . . . . . Disarmed 12 | . 6 . 6 . . . . . . . . . . . . . . . . . . . . . Reprogrammed . | . . . . . . . . . . . . . . . . . . . . . . . . . Reused . | . . . . . . . . . . . . . . . . . . . . . . . . . Traps Extracted . | . . . . . . . . . . . . . . . . . . . . . . . . . Installed . | . . . . . . . . . . . . . . . . . . . . . . . . . Triggered 10 | . 1 . . . . . . . . 3 . 1 . 2 . . . 2 . . . . 1 . Machines | -11 -10 -10 -9 -9 -9 -8 -8 -7 -7 -7 -7 -6 -6 -6 -6 -6 -6 -5 -5 -5 -5 -5 -5 -5 ---------- Run | Scr Mat Min Mat Min Exi Min Mat Fac Low Low Dat Pro Fac Low Low Zio Dee Pro Fac Was Fac Upp Upp Zhi Machines Disabled 30 | . 6 2 2 . 9 2 7 . . . . . . . . . 1 . . . . . . 1 Max in Single Turn 3 | . 3 2 2 . 3 1 2 . . . . . . . . . 1 . . . . . . 1 Garrison Access 9 | . . . . . . . 1 2 . . . . 2 . . . . . 1 . 3 . . . Machines Sabotaged . | . . . . . . . . . . . . . . . . . . . . . . . . . Garrisons Compromised . | . . . . . . . . . . . . . . . . . . . . . . . . . Overloaded Fab Kills . | . . . . . . . . . . . . . . . . . . . . . . . . . Fab Network Shutdowns 2 | . . . . . . . . . . . . . 1 . . . . . . . 1 . . . Hacking | -11 -10 -10 -9 -9 -9 -8 -8 -7 -7 -7 -7 -6 -6 -6 -6 -6 -6 -5 -5 -5 -5 -5 -5 -5 --------- Run | Scr Mat Min Mat Min Exi Min Mat Fac Low Low Dat Pro Fac Low Low Zio Dee Pro Fac Was Fac Upp Upp Zhi Machines Accessed 114 | . 9 1 14 2 2 1 14 13 2 1 4 . 13 3 2 1 . . 10 . 11 . 2 9 Terminals 52 | . 7 1 11 1 . 1 11 5 . . . . 5 . . . . . 5 . 5 . . . Fabricators 8 | . . . . . . . . 2 . . . . 3 . . . . . 2 . 1 . . . Repair Stations 7 | . . . 2 . . . . 1 . . . . 2 . . . . . 2 . . . . . Recycling Units 6 | . 2 . 1 . . . 1 2 . . . . . . . . . . . . . . . . Scanalyzers 5 | . . . . . . . 1 1 . . . . 1 . . . . . . . 2 . . . Garrison Access 9 | . . . . . . . 1 2 . . . . 2 . . . . . 1 . 3 . . . Total Hacks 578 | . 53 2 88 5 2 7 94 53 10 4 26 . 56 14 2 6 . . 42 . 57 . 9 48 Successful 455 | . 31 . 66 4 2 2 67 49 10 4 26 . 42 14 2 6 . . 32 . 41 . 9 48 Failed 121 | . 22 2 21 1 . 5 27 4 . . . . 13 . . . . . 10 . 16 . . . Catastrophic 6 | . 2 . . . . . 2 . . . . . 2 . . . . . . . . . . . Database Lockouts 2 | . . . 1 . . . . . . . . . 1 . . . . . . . . . . . Manual 273 | . 38 2 55 3 1 8 68 29 . . . . 34 1 . 4 . . 12 . 18 . . . Terminals 366 | . 49 2 79 4 . 7 84 35 . . . . 39 . . . . . 27 . 40 . . . Fabricators 25 | . . . . . . . . 6 . . . . 7 . . . . . 9 . 3 . . . Repair Stations 18 | . . . 5 . . . . 3 . . . . 5 . . . . . 5 . . . . . Recycling Units 13 | . 4 . 4 . . . 2 3 . . . . . . . . . . . . . . . . Scanalyzers 24 | . . . . . . . 7 4 . . . . 3 . . . . . . . 10 . . . Garrison Access 10 | . . . . . . . 1 2 . . . . 2 . . . . . 1 . 4 . . . Terminal Hacks 279 | . 15 . 37 4 2 2 32 19 10 4 26 . 16 14 2 6 . . 13 . 20 . 9 48 Record 81 | . . . . . 1 . . . 9 4 11 . . 12 . . . . . . . . 8 36 Part Schematic 34 | . . . 2 . . . 2 2 . . 6 . 5 . . 6 . . 2 . 5 . . 4 Robot Schematic 9 | . 2 . 1 . . . . . . . 6 . . . . . . . . . . . . . Robot Analysis 18 | . 2 . 5 1 . 2 . 3 . . . . . . . . . . 1 . . . . 4 Prototype ID Bank 21 | . 3 . 7 . . . 3 1 . . 3 . . . . . . . . . . . . 4 Open Door 7 | . . . . 1 . . . . 1 . . . . 2 2 . . . . . . . 1 . Level Access Points 3 | . . . 1 . . . 1 . . . . . . . . . . . . . 1 . . . Branch Access Points 7 | . 1 . 1 . . . 1 2 . . . . . . . . . . 1 . 1 . . . Emergency Access Points 2 | . . . . . . . 2 . . . . . . . . . . . . . . . . . Machine Index 2 | . . . . . . . . 1 . . . . . . . . . . . . 1 . . . Terminal Index 10 | . 1 . 1 1 . . 2 1 . . . . 1 . . . . . 2 . 1 . . . Fabricator Index 3 | . . . . . . . . 1 . . . . . . . . . . 1 . 1 . . . Repair Station Index 2 | . . . . . . . 1 . . . . . . . . . . . . . 1 . . . Scanalyzer Index 2 | . . . . . . . . . . . . . . . . . . . 1 . 1 . . . Garrison Index 1 | . . . . . . . . . . . . . . . . . . . 1 . . . . . Alert Level 6 | . . . 1 . . . 3 . . . . . 2 . . . . . . . . . . . Unreport Threat 16 | . . . 4 . . . 5 2 . . . . 3 . . . . . 1 . 1 . . . Locate Traps 15 | . 3 . 4 . . . 4 . . . . . 1 . . . . . 1 . 2 . . . Disarm Traps 2 | . 1 . 1 . . . . . . . . . . . . . . . . . . . . . Transport Status 1 | . . . 1 . . . . . . . . . . . . . . . . . . . . . Recall Extermination 3 | . . . . . . . . 2 . . . . 1 . . . . . . . . . . . Hauler Manifests 4 | . 1 . 1 . . . 1 1 . . . . . . . . . . . . . . . . Registered Components 6 | . . . 2 . . . 1 1 . . . . 1 . . . . . . . 1 . . . Registered Prototypes 2 | . . . . . . . . . . . . . 1 . . . . . . . 1 . . . Zone Layout 21 | . 1 . 5 1 . . 6 2 . . . . 1 . . . . . 2 . 3 . . . EX-Prototype ID Bank 1 | . . . . . 1 . . . . . . . . . . . . . . . . . . . Fabricator Hacks 16 | . . . . . . . . 4 . . . . 3 . . . . . 7 . 2 . . . Load Schematic 7 | . . . . . . . . 2 . . . . 1 . . . . . 3 . 1 . . . Build 9 | . . . . . . . . 2 . . . . 2 . . . . . 4 . 1 . . . Repair Station Hacks 15 | . . . 5 . . . . 2 . . . . 4 . . . . . 4 . . . . . Scan Component 7 | . . . 2 . . . . 1 . . . . 2 . . . . . 2 . . . . . Repair 7 | . . . 2 . . . . 1 . . . . 2 . . . . . 2 . . . . . Refit 1 | . . . 1 . . . . . . . . . . . . . . . . . . . . . Recycling Unit Hacks 8 | . 2 . 2 . . . 1 3 . . . . . . . . . . . . . . . . Report Inventory 6 | . 2 . 1 . . . 1 2 . . . . . . . . . . . . . . . . Retrieve Components 2 | . . . 1 . . . . 1 . . . . . . . . . . . . . . . . Scanalyzer 22 | . . . . . . . 7 4 . . . . 3 . . . . . . . 8 . . . Insert Component 11 | . . . . . . . 3 2 . . . . 2 . . . . . . . 4 . . . Analyze 11 | . . . . . . . 4 2 . . . . 1 . . . . . . . 4 . . . Garrison Access Hacks 9 | . . . . . . . 1 2 . . . . 2 . . . . . 1 . 3 . . . Seal Access 9 | . . . . . . . 1 2 . . . . 2 . . . . . 1 . 3 . . . Unauthorized Hacks 106 | . 14 . 22 . . . 26 15 . . . . 14 . . . . . 7 . 8 . . . Terminals 91 | . 12 . 21 . . . 25 12 . . . . 9 . . . . . 5 . 7 . . . Track 40 | . 6 . 10 . . . 11 4 . . . . 3 . . . . . 2 . 4 . . . Assimilate 5 | . . . 1 . . . 1 2 . . . . 1 . . . . . . . . . . . Botnet 36 | . 5 . 9 . . . 11 4 . . . . 3 . . . . . 2 . 2 . . . Disrupt 1 | . . . . . . . 1 . . . . . . . . . . . . . . . . . Operators 9 | . 1 . 1 . . . 1 2 . . . . 2 . . . . . 1 . 1 . . . Fabricators 9 | . . . . . . . . 2 . . . . 4 . . . . . 2 . 1 . . . Report 7 | . . . . . . . . 2 . . . . 2 . . . . . 2 . 1 . . . Download 2 | . . . . . . . . . . . . . 2 . . . . . . . . . . . Repair Stations 2 | . . . . . . . . 1 . . . . 1 . . . . . . . . . . . Mechanics 2 | . . . . . . . . 1 . . . . 1 . . . . . . . . . . . Recycling Units 4 | . 2 . 1 . . . 1 . . . . . . . . . . . . . . . . . Reject 1 | . . . . . . . 1 . . . . . . . . . . . . . . . . . Tunnel 3 | . 2 . 1 . . . . . . . . . . . . . . . . . . . . . Scanalyzers . | . . . . . . . . . . . . . . . . . . . . . . . . . Garrison Access . | . . . . . . . . . . . . . . . . . . . . . . . . . Data Cores Recovered 4 | . 2 . 1 . . . 1 . . . . . . . . . . . . . . . . . Used 1 | . . . 1 . . . . . . . . . . . . . . . . . . . . . Hacking Detections 65 | . 7 1 14 1 . 1 12 6 . . . . 8 . . . . . 8 . 7 . . . Full Trace Events 11 | . 4 . . . . 1 2 1 . . . . 2 . . . . . . . 1 . . . Feedback Events 2 | . . . . . . . . . . . . . 2 . . . . . . . . . . . Corruption 2 | . . . . . . . . . . . . . 2 . . . . . . . . . . . Feedback Blocked . | . . . . . . . . . . . . . . . . . . . . . . . . . Robot Schematics Acquired 9 | . 2 . 1 . . . . . . . 6 . . . . . . . . . . . . . Robots Built . | . . . . . . . . . . . . . . . . . . . . . . . . . Matter . | . . . . . . . . . . . . . . . . . . . . . . . . . Time . | . . . . . . . . . . . . . . . . . . . . . . . . . Total Robot Build Rating . | . . . . . . . . . . . . . . . . . . . . . . . . . Part Schematics Acquired 46 | . . . 2 . . . 5 4 . . 6 . 8 . . 6 . . 2 . 9 . . 4 Parts Built 10 | . . . . . . . . 4 . . . . 2 . . . . . 3 . 1 . . . Matter 1806 | . . . . . . . . 424 . . . . 446 . . . . . 724 . 212 . . . Time 620 | . . . . . . . . 212 . . . . 164 . . . . . 191 . 53 . . . Total Part Build Rating 65 | . . . . . . . . 24 . . . . 13 . . . . . 22 . 6 . . . Parts Repaired 7 | . . . 2 . . . . 1 . . . . 2 . . . . . 2 . . . . . Time 290 | . . . 89 . . . . 95 . . . . 41 . . . . . 65 . . . . . Parts Recycled . | . . . . . . . . . . . . . . . . . . . . . . . . . Recycled Matter . | . . . . . . . . . . . . . . . . . . . . . . . . . Retrieved Matter . | . . . . . . . . . . . . . . . . . . . . . . . . . Retrieved Components 12 | . . . 10 . . . . 2 . . . . . . . . . . . . . . . . Parts Scanalyzed 10 | . . . . . . . 3 2 . . . . 1 . . . . . . . 4 . . . Part Schematics Acquired 10 | . . . . . . . 3 2 . . . . 1 . . . . . . . 4 . . . Parts Damaged 1 | . . . . . . . . 1 . . . . . . . . . . . . . . . . Bothacking | -11 -10 -10 -9 -9 -9 -8 -8 -7 -7 -7 -7 -6 -6 -6 -6 -6 -6 -5 -5 -5 -5 -5 -5 -5 ------------ Run | Scr Mat Min Mat Min Exi Min Mat Fac Low Low Dat Pro Fac Low Low Zio Dee Pro Fac Was Fac Upp Upp Zhi Used RIF Installer . | . . . . . . . . . . . . . . . . . . . . . . . . . Robots Hacked . | . . . . . . . . . . . . . . . . . . . . . . . . . Non-combat . | . . . . . . . . . . . . . . . . . . . . . . . . . Combat . | . . . . . . . . . . . . . . . . . . . . . . . . . Robot Hacks Applied . | . . . . . . . . . . . . . . . . . . . . . . . . . Relay Couplers Released . | . . . . . . . . . . . . . . . . . . . . . . . . . Robots Rewired 4 | . . . . 1 . 1 . . 2 . . . . . . . . . . . . . . . Allies Hacked . | . . . . . . . . . . . . . . . . . . . . . . . . . Hacks Repelled . | . . . . . . . . . . . . . . . . . . . . . . . . . Allies | -11 -10 -10 -9 -9 -9 -8 -8 -7 -7 -7 -7 -6 -6 -6 -6 -6 -6 -5 -5 -5 -5 -5 -5 -5 -------- Run | Scr Mat Min Mat Min Exi Min Mat Fac Low Low Dat Pro Fac Low Low Zio Dee Pro Fac Was Fac Upp Upp Zhi Total Allies 11 | . . . 1 2 . 1 1 2 2 . . 1 1 . . . . . . . . . . . Largest Group 3 | . . . 1 2 2 1 1 3 3 1 1 1 1 1 . . . . . . . . . . Highest-Rated Group 94 | . . . 10 41 36 29 29 46 76 26 26 94 26 26 . . . . . . . . . . Highest-Rated Ally 94 | . . . 10 31 26 29 29 26 26 26 26 94 26 26 . . . . . . . . . . Total Orders 2 | . . . . . 2 . . . . . . . . . . . . . . . . . . . STAY 1 | . . . . . 1 . . . . . . . . . . . . . . . . . . . FOLLOW 1 | . . . . . 1 . . . . . . . . . . . . . . . . . . . Ally Attacks 46 | . . . . 11 . 1 3 . 15 . . 16 . . . . . . . . . . . . Total Damage 1029 | . . . . 158 . . 54 . 381 . . 436 . . . . . . . . . . . . Kills 9 | . . . . 1 . . . . 4 . . 4 . . . . . . . . . . . . Allies Corrupted . | . . . . . . . . . . . . . . . . . . . . . . . . . Allies Melted . | . . . . . . . . . . . . . . . . . . . . . . . . . Intel | -11 -10 -10 -9 -9 -9 -8 -8 -7 -7 -7 -7 -6 -6 -6 -6 -6 -6 -5 -5 -5 -5 -5 -5 -5 ------- Run | Scr Mat Min Mat Min Exi Min Mat Fac Low Low Dat Pro Fac Low Low Zio Dee Pro Fac Was Fac Upp Upp Zhi Robot Analysis Total 18 | . 2 . 5 1 . 2 . 3 . . . . . . . . . . 1 . . . . 4 Derelict Logs Recovered 15 | . . 2 . 1 . . . . 2 2 . 1 . 1 1 . . 1 . . . 1 3 . Drone Launches . | . . . . . . . . . . . . . . . . . . . . . . . . . Drone Recoveries . | . . . . . . . . . . . . . . . . . . . . . . . . . Decoded 0b10 Intel 1 | . . . . . . . . . . . . . . . . . . . 1 . . . . . Exits 1 | . . . . . . . . . . . . . . . . . . . 1 . . . . . Exploration | -11 -10 -10 -9 -9 -9 -8 -8 -7 -7 -7 -7 -6 -6 -6 -6 -6 -6 -5 -5 -5 -5 -5 -5 -5 ------------- Run | Scr Mat Min Mat Min Exi Min Mat Fac Low Low Dat Pro Fac Low Low Zio Dee Pro Fac Was Fac Upp Upp Zhi Turns Passed 23220 | 3079 975 745 1362 755 1404 580 1309 1253 934 428 62 456 1286 692 642 631 1463 400 1834 523 1105 448 724 130 Spaces Moved 19582 | 318 771 636 1019 617 1225 691 1248 1378 945 553 84 458 1157 896 777 859 1353 491 1403 187 1034 574 758 150 Core 6 | 5 . . . . 1 . . . . . . . . . . . . . . . . . . . Treads 127 | 126 . . . . 1 . . . . . . . . . . . . . . . . . . . Legs . | . . . . . . . . . . . . . . . . . . . . . . . . . Wheels . | . . . . . . . . . . . . . . . . . . . . . . . . . Hover 19449 | 187 771 636 1019 617 1223 691 1248 1378 945 553 84 458 1157 896 777 859 1353 491 1403 187 1034 574 758 150 Flight . | . . . . . . . . . . . . . . . . . . . . . . . . . Fastest Speed 50 | 50 100 100 86 86 72 72 72 72 72 72 72 72 72 72 72 72 65 65 65 65 65 65 65 65 Average Speed 76 | 122 100 100 93 94 88 72 72 72 72 72 72 72 72 72 72 72 66 65 65 118 65 65 65 65 Slowest Speed 300 | 160 100 100 100 96 300 72 72 72 72 72 72 72 76 72 72 72 146 65 65 135 65 65 65 65 Overloaded Moves . | . . . . . . . . . . . . . . . . . . . . . . . . . Propulsion Burnouts . | . . . . . . . . . . . . . . . . . . . . . . . . . Robots Hopped . | . . . . . . . . . . . . . . . . . . . . . . . . . Cave-ins Triggered . | . . . . . . . . . . . . . . . . . . . . . . . . . Exploration Rate (%) 75 | 36 95 98 81 96 91 98 97 37 92 80 71 60 29 87 93 86 88 76 43 97 28 74 82 66 Regions Visited 24 Branch Regions 16 Pre-discovered Areas 13 | . 2 2 1 . 1 . . . 1 1 1 . . . . . . . . . . . 1 3 Known Exits Taken 18 | . 1 . 1 . . 1 1 1 1 1 1 1 1 1 1 1 1 1 . . 1 1 1 . Unknown Exits Taken 4 | 1 . 1 . 1 1 . . . . . . . . . . . . . . . . . . . Scrap Searched 35 | . . 2 . 4 . 1 . . 4 4 . 1 . 3 1 3 . 5 . . . 4 3 . Spaces Dug 47 | . 13 . . . . . . 4 1 1 . . 9 . 2 . . 5 2 . 10 . . . Terrain Destroyed 429 | . 51 82 34 34 17 14 73 6 1 1 . . 9 . 2 . 84 5 2 2 12 . . . Melee 34 | . . . . . . . . 4 1 1 . . 9 . 2 . . 5 2 . 10 . . . Projectile 69 | . . . . . 1 14 48 2 . . . . . . . . . . . 2 2 . . . AOE 326 | . 51 82 34 34 16 . 25 . . . . . . . . . 84 . . . . . . . Terrain Rammed . | . . . . . . . . . . . . . . . . . . . . . . . . . Walls Destroyed . | . . . . . . . . . . . . . . . . . . . . . . . . . Machines Disabled . | . . . . . . . . . . . . . . . . . . . . . . . . . Actions | -11 -10 -10 -9 -9 -9 -8 -8 -7 -7 -7 -7 -6 -6 -6 -6 -6 -6 -5 -5 -5 -5 -5 -5 -5 --------- Run | Scr Mat Min Mat Min Exi Min Mat Fac Low Low Dat Pro Fac Low Low Zio Dee Pro Fac Was Fac Upp Upp Zhi Total 26417 | 2994 884 691 1293 754 1436 750 1524 1574 1111 581 85 543 1538 925 841 871 1850 552 2083 455 1343 621 943 175 Wait 4953 | 2661 25 11 139 55 67 29 62 97 51 26 2 41 295 10 34 1 356 35 405 233 198 19 98 3 Move 19558 | 317 770 635 1018 616 1224 690 1247 1377 944 552 83 457 1156 895 776 858 1352 490 1402 186 1033 573 757 150 Hop . | . . . . . . . . . . . . . . . . . . . . . . . . . Pick Up 67 | 1 3 . 4 6 13 2 6 3 2 1 . . 3 1 . 3 3 . 3 . 2 2 8 1 Fast Attach 103 | 9 2 1 11 . 15 . 4 5 1 . . . 6 2 . 3 22 . 10 1 1 . 3 7 Attach 25 | . 1 1 . 2 2 1 3 2 . . . . 2 1 1 . 1 . 2 1 4 . 1 . Detach 8 | . . . . . . . 1 3 . . . . . . . . . . 1 2 1 . . . Swap 57 | . 7 1 7 6 2 . . 7 . . . . 2 1 . 1 7 . 6 2 3 . 5 . Drop 150 | 2 2 . 11 10 28 1 8 13 2 1 . . 4 3 1 5 26 . 10 2 3 1 10 7 Fire 411 | 4 47 30 66 25 85 16 88 13 . . . . . . . . 6 . . 17 7 . . 7 Melee 503 | . . . . . . . 28 30 54 1 . 25 42 8 12 . 46 13 145 . 52 13 34 . Ram . | . . . . . . . . . . . . . . . . . . . . . . . . . Kick . | . . . . . . . . . . . . . . . . . . . . . . . . . Crush . | . . . . . . . . . . . . . . . . . . . . . . . . . Escape Stasis 1 | . . . . . . . . . . . . . . . . . . . 1 . . . . . Rewire 16 | . . 1 . 3 . 5 . 2 5 . . . . . . . . . . . . . . . Trap . | . . . . . . . . . . . . . . . . . . . . . . . . . Miscellaneous 565 | . 27 11 37 31 . 6 77 22 52 . . 20 28 4 17 . 31 14 98 11 39 13 27 . Route ------- -11/Scrapyard -10/Materials (discovered 5 exits: *Mat x3 / *Min x2) -10/Mines (discovered 2 exits: *Mat x2) -9/Materials (discovered 5 exits: *Mat x3 / *Min x2) -9/Mines (discovered 3 exits: *Mat x2 / *Exi) -9/Exiles (discovered 2 exits: *Min x2) -8/Mines (discovered 2 exits: *Mat x2) -8/Materials (discovered 3 exits: *Fac x3) -7/Factory (discovered 6 exits: Fac x2 / Sto x2 / *Low x2) -7/Lower Caves (discovered 2 exits: *Low / *Dat) -7/Lower Caves (discovered 2 exits: *Fac / *Dat) -7/Data Miner -6/Proximity Caves -6/Factory (discovered 5 exits: Fac x3 / *Low / *Ext) -6/Lower Caves -6/Lower Caves (discovered 2 exits: *Fac / *Zio) -6/Zion (discovered 2 exits: *Dee / *Pro) -6/Deep Caves -5/Proximity Caves -5/Factory (discovered 4 exits: *Fac x2 / Upp x2) -5/Waste -5/Factory (discovered 6 exits: *Fac x4 / *Upp x2) -5/Upper Caves -5/Upper Caves -5/Zhirov (discovered 1 exit: *Pro) History --------- Turn | Location | Event 10 | -11/Scrapyard | Upgraded with Propulsion slot (x1) 10 | -11/Scrapyard | Upgraded with Utility slot (x1) 10 | -11/Scrapyard | Upgraded with Weapon slot (x1) 32 | -11/Scrapyard | Discovered new exit (range 16) 1684 | -11/Scrapyard | Assembled infested the area 3080 | -11/Scrapyard | Entered Materials 3081 | -10/Materials | Build established: Mutant 3198 | -10/Materials | Discovered new exit (range 8) 3204 | -10/Materials | Identified exit to Mines 3537 | -10/Materials | Discovered new exit (range 3) 3664 | -10/Materials | Reached level 2 3684 | -10/Materials | Discovered new exit (range 8) 3773 | -10/Materials | Upgraded with Utility slot (x1) 3773 | -10/Materials | Upgraded with Weapon slot (x1) 3905 | -10/Materials | Discovered new exit (range 16) 4055 | -10/Materials | Entered Mines 4056 | -10/Mines | Learned location of Storage (-7) 4057 | -10/Mines | Reached level 3 4063 | -10/Mines | Upgraded with Utility slot (x1) 4199 | -10/Mines | Discovered new exit (range 10) 4352 | -10/Mines | Learned location of Mines (-9) 4390 | -10/Mines | Discovered new exit (range 14) 4468 | -10/Mines | Reached level 4 4482 | -10/Mines | Upgraded with Utility slot (x1) 4521 | -10/Mines | Core integrity fell below 50% 4654 | -10/Mines | Received a Rocket Launcher from a helpful Derelict 4800 | -10/Mines | Entered Materials 4802 | -9/Materials | Reached level 5 5062 | -9/Materials | Discovered new exit (range 3) 5142 | -9/Materials | Reached level 6 5348 | -9/Materials | Identified exit to Mines 5420 | -9/Materials | Identified exit to Materials 5471 | -9/Materials | Repaired Imp. Light Armor Plating 5563 | -9/Materials | Central database locked down 5587 | -9/Materials | Build established: Hacker-Tank 5643 | -9/Materials | Core integrity fell below 50% 5649 | -9/Materials | Reached level 7 5671 | -9/Materials | Upgraded with Power slot (x1) 5671 | -9/Materials | Upgraded with Propulsion slot (x1) 5812 | -9/Materials | Repaired Imp. EM Shotgun 6162 | -9/Materials | Entered Mines 6162 | -9/Mines | Accompanied by 1 ally 6164 | -9/Mines | Reached level 8 6186 | -9/Mines | Discovered exit to Materials (range 10) 6219 | -9/Mines | Assembled infested the area 6239 | -9/Mines | Discovered new exit (range 10) 6375 | -9/Mines | Upgraded with Utility slot (x1) 6408 | -9/Mines | Deemed a non-threat by the Exiles lab entrance 6490 | -9/Mines | A weapon hastily lodged in a ceiling crevice suddenly fell to the ground 6527 | -9/Mines | Learned Materials emergency access door positions 6598 | -9/Mines | Escorted by a lone wolf Derelict 6607 | -9/Mines | Build established: Hacker-Mutant 6650 | -9/Mines | Discovered exit to Materials (range 9) 6792 | -9/Mines | Met a Derelict shopkeep closing up shop 6917 | -9/Mines | Entered Exiles 6917 | -9/Exiles | Accompanied by 2 allies 6930 | -9/Exiles | Discovered new exit (range 16) 6968 | -9/Exiles | Met 8R-AWN 6984 | -9/Exiles | Met EX-HEX 7024 | -9/Exiles | Met EX-DEC 7044 | -9/Exiles | Learned location of Zion (-6) 7062 | -9/Exiles | Met EX-BIN 7077 | -9/Exiles | Aligned with FarCom system 7078 | -9/Exiles | Given EX-Vault access code 7103 | -9/Exiles | Opened EX-Vault 7130 | -9/Exiles | Warned to stay clear of 0b10 Research branches 7600 | -9/Exiles | Attacked by the Exiles 7604 | -9/Exiles | Destroyed EX-HEX 7717 | -9/Exiles | Destroyed 8R-AWN 7722 | -9/Exiles | Found Prototype Device 7729 | -9/Exiles | Identified AS-neutralizer No. 17b 7736 | -9/Exiles | Found Prototype Processor 7736 | -9/Exiles | Identified Exp. Targeting Computer 7744 | -9/Exiles | Found Prototype Ballistic Gun 7744 | -9/Exiles | Identified 8R-AWN's Boregun 7747 | -9/Exiles | Found 8R-AWN's Boregun 7818 | -9/Exiles | Core integrity fell below 20% 7956 | -9/Exiles | Destroyed EX-DEC 7984 | -9/Exiles | Destroyed EX-BIN 8049 | -9/Exiles | Build established: Scavenger-Mutant 8097 | -9/Exiles | Found Prototype Protection 8097 | -9/Exiles | Identified 8R-AWN's Armor/EX 8187 | -9/Exiles | Discovered new exit (range 10) 8321 | -9/Exiles | Entered Mines 8321 | -8/Mines | Accompanied by 1 ally 8327 | -8/Mines | Reached level 9 8420 | -8/Mines | Discovered exit to Materials (range 3) 8659 | -8/Mines | Discovered exit to Materials (range 8) 8707 | -8/Mines | Build established: Scavenger-Gunner 8901 | -8/Mines | Entered Materials 8901 | -8/Materials | Accompanied by 1 ally 8902 | -8/Materials | Core integrity fell below 50% 8902 | -8/Materials | Core integrity fell below 20% 8903 | -8/Materials | Reached level 10 8968 | -8/Materials | Garrison activated, responded to threat 8971 | -8/Materials | Reached level 11 8974 | -8/Materials | Upgraded with Utility slot (x1) 9030 | -8/Materials | Destroyed 10 combat bots 9062 | -8/Materials | Identified exit to Factory 9227 | -8/Materials | Reached level 12 9261 | -8/Materials | Destroyed 10 combat bots 9554 | -8/Materials | Build established: Hacker-Mutant 10106 | -8/Materials | Reached level 13 10114 | -8/Materials | Upgraded with Utility slot (x1) 10210 | -8/Materials | Entered Factory 10210 | -7/Factory | Accompanied by 1 ally 10211 | -7/Factory | Identified exit to Storage 10212 | -7/Factory | Reached level 14 10490 | -7/Factory | Identified exit to Lower Caves 10651 | -7/Factory | Build established: Wizard-Scout 10745 | -7/Factory | Repaired Broken Adv. Weapon Cycler 10947 | -7/Factory | Discovered new exit (range 20) 11080 | -7/Factory | Discovered new exit (range 20) 11249 | -7/Factory | Fabricated Powered Armor? 11343 | -7/Factory | Fabricated Cmb. Antigrav System (x2) 11463 | -7/Factory | Entered Lower Caves 11463 | -7/Lower Caves | Accompanied by 2 allies 11465 | -7/Lower Caves | Reached level 15 11473 | -7/Lower Caves | Found Alien Artifact 11495 | -7/Lower Caves | Attracted the attention of an 0b10 checkpoint 11618 | -7/Lower Caves | Attacked by a faux Warlord 11865 | -7/Lower Caves | A Derelict revealed a hidden shortcut to meet someone special 11870 | -7/Lower Caves | Identified exit to Data Miner 11883 | -7/Lower Caves | Learned location of 1 exit from Factory 11883 | -7/Lower Caves | Learned Factory trap positions 11883 | -7/Lower Caves | Learned Factory emergency access door positions 11883 | -7/Lower Caves | Learned Research security intel 11883 | -7/Lower Caves | Learned Armory security intel 11883 | -7/Lower Caves | Learned Extension terminal intel 11883 | -7/Lower Caves | Learned Factory garrison access intel 12098 | -7/Lower Caves | Discovered new exit (range 13) 12101 | -7/Lower Caves | Learned Factory machine intel 12254 | -7/Lower Caves | Encountered a Warlord checkpoint 12371 | -7/Lower Caves | Identified exit to Lower Caves 12397 | -7/Lower Caves | Entered another Lower Caves area 12397 | -7/Lower Caves | Accompanied by 1 ally 12405 | -7/Lower Caves | Discovered new exit (range 5) 12408 | -7/Lower Caves | Identified exit to Factory 12507 | -7/Lower Caves | Learned 8 Research zone layouts 12667 | -7/Lower Caves | Learned Factory terminal intel 12698 | -7/Lower Caves | Learned Factory security intel 12817 | -7/Lower Caves | Discovered exit to Data Miner (range 7) 12825 | -7/Lower Caves | Entered Data Miner 12825 | -7/Data Miner | Accompanied by 1 ally 12825 | -7/Data Miner | Discovered new exit (range 6) 12830 | -7/Data Miner | Identified exit to Proximity Caves 12838 | -7/Data Miner | Met Data Miner 12857 | -7/Data Miner | Learned location of Section 7 (-3) 12857 | -7/Data Miner | Acquired the access code to Warlord's prototype stash 12867 | -7/Data Miner | Received God Mode back door access code from Data Miner 12887 | -7/Data Miner | Entered Proximity Caves 12887 | -6/Proximity Caves | Accompanied by 1 ally 12889 | -6/Proximity Caves | Reached level 16 13013 | -6/Proximity Caves | Escorted by Enhanced Grunt 13023 | -6/Proximity Caves | Reached level 17 13087 | -6/Proximity Caves | Attracted the attention of an 0b10 checkpoint 13149 | -6/Proximity Caves | Learned 4 Factory zone layouts 13187 | -6/Proximity Caves | Spotted B-75 Beast 13256 | -6/Proximity Caves | Discovered exit to Factory (range 9) 13310 | -6/Proximity Caves | Core integrity fell below 50% 13343 | -6/Proximity Caves | Entered Factory 13344 | -6/Factory | Identified exit to Lower Caves 13345 | -6/Factory | Identified exit to Factory 13345 | -6/Factory | Identified exit to Extension 13345 | -6/Factory | Reached level 18 13346 | -6/Factory | Loaded intel: 110 trap records 13349 | -6/Factory | Loaded intel: 270 machine locations 13350 | -6/Factory | Loaded intel: 22 terminal locations 13351 | -6/Factory | Loaded intel: 3 garrison access locations 13352 | -6/Factory | Identified Core Expander 13352 | -6/Factory | Installed Core Expander, added new Power slot 13457 | -6/Factory | Incoming investigation squad redirected 13971 | -6/Factory | Repaired Powered Armor 14056 | -6/Factory | Incoming investigation squad redirected 14139 | -6/Factory | Local fabrication network quarantined 14170 | -6/Factory | Fabricated Imp. Powered Armor? 14192 | -6/Factory | Fabricated Force Lance? 14197 | -6/Factory | Central database locked down 14271 | -6/Factory | Discovered exit to Factory (range 12) 14357 | -6/Factory | Incoming investigation squad redirected 14384 | -6/Factory | Repaired Adv. Terrain Scanner 14504 | -6/Factory | Upgraded with Utility slot (x1) 14629 | -6/Factory | Entered Lower Caves 14629 | -6/Lower Caves | Accompanied by 1 ally 14631 | -6/Lower Caves | Reached level 19 14635 | -6/Lower Caves | Learned Factory garrison access intel 14806 | -6/Lower Caves | Build established: Wizard-Ninja 14913 | -6/Lower Caves | Discovered new exit (range 19) 14947 | -6/Lower Caves | Learned Factory trap positions 14947 | -6/Lower Caves | Learned Armory trap positions 14947 | -6/Lower Caves | Learned Factory stockpile data 14947 | -6/Lower Caves | Learned Factory security intel 14947 | -6/Lower Caves | Learned Research security intel 14947 | -6/Lower Caves | Learned Extension terminal intel 14947 | -6/Lower Caves | Learned Factory garrison access intel 14947 | -6/Lower Caves | Learned Research garrison access intel 15059 | -6/Lower Caves | Identified exit to Lower Caves 15321 | -6/Lower Caves | Entered another Lower Caves area 15472 | -6/Lower Caves | Build established: Hacker-Ninja 15484 | -6/Lower Caves | Discovered exit to Factory (range 18) 15758 | -6/Lower Caves | Learned Factory garrison access intel 15769 | -6/Lower Caves | Encountered a Warlord checkpoint 15886 | -6/Lower Caves | Discovered new exit (range 7) 15892 | -6/Lower Caves | Identified exit to Zion 15963 | -6/Lower Caves | Entered Zion 15971 | -6/Zion | Acquired unknown access codes intercepted by a Zionite 16020 | -6/Zion | Discovered new exit (range 15) 16063 | -6/Zion | Identified exit to Proximity Caves 16388 | -6/Zion | Found Prototype Launcher 16388 | -6/Zion | Identified Rocket Array 16567 | -6/Zion | Discovered new exit (range 19) 16579 | -6/Zion | Opened final containment barrier to the Deep Caves 16591 | -6/Zion | Saw the warning signs outside the Deep Caves entrance 16592 | -6/Zion | Identified exit to Deep Caves 16594 | -6/Zion | Entered Deep Caves 16778 | -6/Deep Caves | Attacked by Z-Imprinter 16806 | -6/Deep Caves | Destroyed Z-Imprinter 16815 | -6/Deep Caves | Core integrity fell below 50% 17075 | -6/Deep Caves | Found Prototype Protection 17075 | -6/Deep Caves | Identified Zio. Weapon Casing 17136 | -6/Deep Caves | Build established: Scavenger-Mutant 17278 | -6/Deep Caves | Found Prototype Protection 17278 | -6/Deep Caves | Identified Zio. Heavy Carapace 17392 | -6/Deep Caves | Discovered new exit (range 12) 17487 | -6/Deep Caves | Exposed GOLEM chamber 17788 | -6/Deep Caves | Found GOLEM Unit 18056 | -6/Deep Caves | Identified exit to Proximity Caves 18057 | -6/Deep Caves | Entered Proximity Caves 18059 | -5/Proximity Caves | Reached level 20 18137 | -5/Proximity Caves | Learned Factory emergency access door positions 18234 | -5/Proximity Caves | Build established: Hacker-Ninja 18408 | -5/Proximity Caves | Discovered exit to Factory (range 18) 18457 | -5/Proximity Caves | Entered Factory 18458 | -5/Factory | Loaded intel: 92 trap records 18459 | -5/Factory | Reached level 21 18462 | -5/Factory | Loaded intel: 4 garrison access locations 18475 | -5/Factory | Upgraded with Utility slot (x1) 18615 | -5/Factory | Repaired Imp. Powered Armor? 18969 | -5/Factory | Identified exit to Upper Caves 19103 | -5/Factory | Reached level 22 19283 | -5/Factory | Core integrity fell below 50% 19635 | -5/Factory | Spotted B-75 Beast 19657 | -5/Factory | First assault squad dispatched 19660 | -5/Factory | Destroyed B-75 Beast 19695 | -5/Factory | Discovered new exit (range 20) 19720 | -5/Factory | Fabricated Adv. Phase Shifter? 19722 | -5/Factory | Fabricated Imp. Powered Armor? 19838 | -5/Factory | Fabricated Force Lance (x1) 20144 | -5/Factory | Repaired Adv. Reaction Control System? 20181 | -5/Factory | Discovered new exit (range 15) 20190 | -5/Factory | Identified exit to Factory 20278 | -5/Factory | Incoming assault squad redirected 20291 | -5/Factory | Sucked down chute 20291 | -5/Factory | Entered Waste 20293 | -5/Waste | Reached level 23 20293 | -5/Waste | Upgraded with Utility slot (x1) 20300 | -5/Waste | Spotted C-40 Crusher 20304 | -5/Waste | Destroyed C-40 Crusher 20306 | -5/Waste | EMP discharged 20319 | -5/Waste | Build established: Hacker-Mutant 20320 | -5/Waste | Spotted C-40 Crusher 20320 | -5/Waste | Spotted C-40 Crusher 20320 | -5/Waste | Destroyed C-40 Crusher 20337 | -5/Waste | Destroyed C-40 Crusher 20355 | -5/Waste | Destroyed C-40 Crusher 20378 | -5/Waste | Found Damper Plating 20380 | -5/Waste | Spotted C-40 Crusher 20385 | -5/Waste | Destroyed C-40 Crusher 20395 | -5/Waste | Spotted C-40 Crusher 20397 | -5/Waste | Destroyed C-40 Crusher 20406 | -5/Waste | EMP discharged 20421 | -5/Waste | Discovered new exit (range 13) 20506 | -5/Waste | EMP discharged 20586 | -5/Waste | Identified exit to Factory 20606 | -5/Waste | EMP discharged 20706 | -5/Waste | EMP discharged 20806 | -5/Waste | EMP discharged 20814 | -5/Waste | Entered Factory 20815 | -5/Factory | Loaded intel: 4 garrison access locations 21464 | -5/Factory | Discovered exit to Upper Caves (range 8) 21802 | -5/Factory | Local fabrication network quarantined 21845 | -5/Factory | Fabricated Adv. Hacking Suite (x1) 21919 | -5/Factory | Entered Upper Caves 22099 | -5/Upper Caves | Learned Factory terminal intel 22167 | -5/Upper Caves | Discovered new exit (range 8) 22362 | -5/Upper Caves | Identified exit to Upper Caves 22367 | -5/Upper Caves | Entered another Upper Caves area 22620 | -5/Upper Caves | Learned location of Armory (-3) 22924 | -5/Upper Caves | Learned 4 Factory zone layouts 22954 | -5/Upper Caves | Learned Research trap positions 22954 | -5/Upper Caves | Learned Armory stockpile data 22954 | -5/Upper Caves | Learned Factory garrison access intel 23049 | -5/Upper Caves | Discovered new exit (range 14) 23078 | -5/Upper Caves | Identified exit to Zhirov 23091 | -5/Upper Caves | Entered Zhirov 23091 | -5/Zhirov | Discovered new exit (range 3) 23092 | -5/Zhirov | Identified exit to Proximity Caves 23103 | -5/Zhirov | Met Zhirov 23116 | -5/Zhirov | Learned location of Quarantine (-3) 23116 | -5/Zhirov | Learned location of Testing (-2) 23116 | -5/Zhirov | Learned location of Command (-1) 23125 | -5/Zhirov | Build established: Hacker-Ninja 23133 | -5/Zhirov | Zhirov requested help retrieving the SGEMP Prototype 23149 | -5/Zhirov | Found Alien Artifact 23149 | -5/Zhirov | Identified Integrated Dissipator 23149 | -5/Zhirov | Installed Integrated Dissipator, increased core heat dissipation (+20) 23188 | -5/Zhirov | Cloak Generator disabled 23188 | -5/Zhirov | Attacked by Zhirov 23215 | -5/Zhirov | Found Alien Artifact 23221 | -5/Zhirov | Zhirov detonated his lab 23221 | -5/Zhirov | Core destroyed Last Messages --------------- 23200_ HV Slug penetrates Q335-r. 23200_ HV Slug penetrates Reinforced Barrier. 23207_ Acquired Adv. Reaction Control System. 23210_ Enhanced Grunt held in stasis. 23215_ Dropped Imp. Plasma Cutter. 23215_ Acquired Alien Artifact. 23221_ Enhanced Grunt destroyed. 23221_ Machine disabled. 23221_ Quantum Analyzer disabled. 23221_ Enhanced Grunt destroyed. 23221_ Quantum Analyzer disabled. 23221_ Machine disabled. 23221_ Zhirov's Terminal disabled. 23221_ Enhanced Grunt destroyed. 23221_ Zhirov's Terminal disabled. 23221_ Machine disabled. 23221_ B-86 Titan destroyed. 23221_ Machine disabled. 23221_ Zhirov's Terminal disabled. 23221_ Mak. Transmission Jammer destroyed. Map ----- +----------------------------------------------------+ | ???????????????????????????????????????? | | ???????????????????????????????????????? | | ????????????????#??????????????????????? | | ???????????????????????????????????????? | | ??????????#??#?????????????????????????? | | ??????????????###????#?????????????????? | | ???????????????"????"?"?"?""???????????? | | ????????????"?????"?"???????"?#????????? | | ????????###??#???#???##????#""#????????? | | ????##??####? ???????###""##???????? | | ????#??#?#? ###?###""""##??????? | | ?"??#??? ###""""""#?#????# | | #?????? # """" #?##??## | | ????#### ##?#### | | ??"# ### | | #"? % g | | #"" % | | ??" %= ###### | | #"" ###???## | | #""# " #?##??#? | | ?""## ""#??####? | | #""# ###?#???? | | #"??# ##??###?# | | ??"## ???###?? | | ?"?### ##?###?# | | #?"# @ #?#?#??? | | #""### #?##?### | | #""## ?######? | | #""# ?###?#?#? | | #"?### ####?#??# | | #""??### ########?? | | ?""?## " #???##?### | | #""## # " " g ####?#?##? | | #"??## #### "#??##?##?? | | #?"#####" "?######?## | | #?"#####"" #?"#?###??### | | #"?#####" " ##""#####?#?## | | #""?#### "o % *= ##""?#??####?# | | ?""###?# L"Q " ! == #?##?"?##?####?? | | #"?#??########### #######""#######?#? | | #""?########?##?#####?####?#""####??#??# | | #"""""????"????"""""?""""??""?#?##?#??#? | | #"""?""?"""?"""""""?"?""""""?"######?#?? | | ??####?####?######?###########?##??#???? | | ?##??##?##?#############?###?####?##?#?# | | #?##?############?#?###?#?###?######?##? | | #??##############?###?###?####?#?##??#?? | | ??###??###########????#??##########??#?? | | ??#??####?########??#########??##?#????? | | | +----------------------------------------------------+ Best States ------------- Heat Dissipation 69 Energy Generation 64 Energy Capacity 1770 Matter Stores 300 Matter Capacity 300 Sight Range 17 Robot Scan Range 20 Terrain Scan Range 24 Terrain Scan Density 410 Jamming Range 14 Power Amplification 30 Armor Coverage 1200 Resistance: KI 20 Resistance: EX 90 Resistance: EM 90 Weapon Cycling 25 Melee Speed Boost 20 Phase Shifting 15 Evasion (%) 81 Targeting Accuracy 12 Melee Accuracy 8 Core Analysis 10 Armor Integrity Analysis 50 Recoil Reduction 2 Salvage Targeting 1 Offensive Hacking 40 Defensive Hacking 24 Item Schematics ----------------- Mining Claw | -9/Materials | Hacked Mining Laser | -9/Materials | Hacked Cmb. Antigrav System | -8/Materials | Scanalyzed Imp. Armor Integrity Analyzer | -8/Materials | Scanalyzed System Backup Module | -8/Materials | Scanalyzed Hacking Suite | -8/Materials | Hacked System Shield | -8/Materials | Hacked Powered Armor | -7/Factory | Hacked Adv. Weapon Cycler | -7/Factory | Scanalyzed Actuator Array | -7/Factory | Scanalyzed Imp. Melee Analysis Suite | -7/Factory | Hacked Combat Drone Bay | -7/Data Miner | Free Lgt. Regenerative Plating | -7/Data Miner | Free Exp. Terrain Scan Processor | -7/Data Miner | Free Tactical Coordination Suite | -7/Data Miner | Free Exp. ECM Suite | -7/Data Miner | Free Mni. Smartbomb Launcher | -7/Data Miner | Free Mak. Transmission Jammer | -6/Factory | Scanalyzed Imp. Force Field | -6/Factory | Downloaded Imp. Actuator Array | -6/Factory | Hacked Imp. Powered Armor | -6/Factory | Hacked EM Shield | -6/Factory | Hacked Imp. Hacking Suite | -6/Factory | Hacked Imp. System Shield | -6/Factory | Hacked Force Lance | -6/Factory | Downloaded Beamcaster | -6/Zion | Free Riot Gun | -6/Zion | Free Hvy. Riot Gun | -6/Zion | Free Battle Rifle | -6/Zion | Free Battle Cannon | -6/Zion | Free Enh. Flamer | -6/Zion | Free Imp. Remote Datajack | -5/Factory | Hacked Adv. Actuator Array | -5/Factory | Hacked Adv. Phase Shifter | -5/Factory | Scanalyzed Adv. Reaction Control System | -5/Factory | Scanalyzed Field Propulsion Array | -5/Factory | Hacked Adv. Transmission Jammer | -5/Factory | Hacked Adv. Power Amplifier | -5/Factory | Scanalyzed Imp. Plasma Cutter | -5/Factory | Scanalyzed Adv. Hacking Suite | -5/Factory | Hacked Exp. Terrain Scanner | -5/Factory | Hacked Exp. Signal Interpreter | -5/Factory | Hacked Assault Drone Bay | -5/Zhirov | Free Exp. Heat Sink | -5/Zhirov | Free Exp. Optical Array | -5/Zhirov | Free Imp. Arc Thrower | -5/Zhirov | Free Robot Schematics ------------------ M-13 Machinist | -10/Materials | Hacked O-16 Technician | -10/Materials | Hacked I-25 Savior | -9/Materials | Hacked S-27 Virus | -7/Data Miner | Free G-50 Soldier | -7/Data Miner | Free L-41 Fighter | -7/Data Miner | Free X-72 Disruptor | -7/Data Miner | Free H-66 Slayer | -7/Data Miner | Free I-36 Angel | -7/Data Miner | Free Fabricated ------------ Powered Armor | x2 | -7/Factory Cmb. Antigrav System | x2 | -7/Factory Imp. Powered Armor | x1 | -6/Factory Force Lance | x1 | -6/Factory | Preloaded Adv. Phase Shifter | x1 | -5/Factory | Preloaded Imp. Powered Armor | x1 | -5/Factory Force Lance | x1 | -5/Factory Adv. Hacking Suite | x1 | -5/Factory Alien Tech Used ----------------- Core Expander Integrated Dissipator Achievements -------------- None Challenges ------------ None RPGLIKE | -11 -10 -10 -9 -9 -9 -8 -8 -7 -7 -7 -7 -6 -6 -6 -6 -6 -6 -5 -5 -5 -5 -5 -5 -5 --------- Run | Scr Mat Min Mat Min Exi Min Mat Fac Low Low Dat Pro Fac Low Low Zio Dee Pro Fac Was Fac Upp Upp Zhi Levels Raised 22 | . 1 2 3 1 . 1 4 1 1 . . 2 1 1 . . . 1 2 1 . . . . XP Earned 37471 | 3000 2700 2450 4910 950 243 1560 5267 2748 1030 244 316 2625 1745 360 402 220 596 1380 3192 67 548 222 544 152 XP Spent 35385 | 2900 1600 2710 4550 1700 25 1450 5235 2225 1500 . . 1040 2600 . . . 1750 . 2900 3200 . . . . Upgrades 58 | 10 2 5 7 1 1 3 6 13 1 . . 5 1 . . . 1 . 1 1 . . . . Power Slot 1 | . . . 1 . . . . . . . . . . . . . . . . . . . . . Propulsion Slot 2 | 1 . . 1 . . . . . . . . . . . . . . . . . . . . . Utility Slot 10 | 1 1 2 . 1 . . 2 . . . . . 1 . . . . . 1 1 . . . . Weapon Slot 2 | 1 1 . . . . . . . . . . . . . . . . . . . . . . . Core Integrity 6 | . . . . . 1 . 3 . . . . 2 . . . . . . . . . . . . Heat Dissipation 4 | . . 2 . . . 2 . . . . . . . . . . . . . . . . . . Energy Generation 1 | . . . . . . . . 1 . . . . . . . . . . . . . . . . Mass Support 1 | 1 . . . . . . . . . . . . . . . . . . . . . . . . Inventory Capacity 7 | 2 . . 2 . . 1 . . 1 . . . . . . . 1 . . . . . . . Sight Range 1 | 1 . . . . . . . . . . . . . . . . . . . . . . . . Sensor Range 10 | . . . . . . . . 10 . . . . . . . . . . . . . . . . Terrain Scan Density 4 | 1 . 1 . . . . . 2 . . . . . . . . . . . . . . . . Melee Accuracy 3 | . . . . . . . . . . . . 3 . . . . . . . . . . . . Hack Attack % 4 | 1 . . 2 . . . 1 . . . . . . . . . . . . . . . . . Hack Defense % 2 | 1 . . 1 . . . . . . . . . . . . . . . . . . . . . Protomatter Created 4578 | . 185 85 261 147 3 46 771 211 285 . . 145 258 26 203 . 236 95 762 88 359 96 316 . Integrity Restored 11726 | . 544 231 770 575 . 138 1542 435 1082 . . 435 624 77 342 . 708 276 2162 256 821 283 425 . Core 8693 | . 288 231 557 221 . 138 980 370 775 . . 435 624 77 134 . 708 186 2032 . 437 222 278 . Parts 3033 | . 256 . 213 354 . . 562 65 307 . . . . . 208 . . 90 130 256 384 61 147 . Protomatter Decayed 925 | . . . . 143 3 . 241 62 73 . . 48 50 3 82 . . . 38 . 81 . 101 . Game ------ Seed CouplerLongswordDerivative Manual? 0 Play Time 04:05:52 Cumulative 312.6 hours Start 2020.10.02 @ 00:58:41 End 2020.10.03 @ 14:06:29 Sessions 5 Manual Loads 0 Difficulty Rogue Special Mode Winter2019/RPGLIKE Game No. 120 Rogue 120 Adventurer 0 Explorer 0 Win Type - Total 4 Types 3/0/0/1/0/0/0/0/0 Lore% 84 Gallery% 90 Achievement% 71 Wizard Run 0 Options --------- ASCII 0 Keyboard 0 Movement Numpad Keybinds 0 Fullscreen 1 Font 18/SmallcapsGlow Map View 76x50 Tactical HUD 1 Map Filters NONE Filters NONE Steam 1 RUN: 9571c3db-fab7-40fb-98ef-5e7abb620603